Cogmind - Beta 14 @@@ ROGUE MODE // 2024.09.22 @ 13:00:05 Player: Kinga Result: Destroyed by 36-6EF(R) with Subdweller Machine Gun Performance ------------- Evolutions (0) 0 Regions Visited (2) 400 Robots Destroyed (28) 140 Value Destroyed (607) 607 Prototype IDs (0) 0 Alien Tech Used (0) 0 Bonus (0) 0 TOTAL SCORE: 1147 Bonus ------- None Cogmind --------- Core Integrity 0/250 Matter 255/300 Energy 246/250 System Corruption 0% Temperature Cool (0) Movement Rolling (140) Ox4 Location -10/Subcaves Parts ------- > --- POWER (1) -------- Ion Engine > --- PROPULSION (2) --- Wheel Wheel > --- UTILITY (2) ------ Disposable Heat Sink Huge Storage Unit > --- WEAPON (2) ------- Light Cannon Light Cannon > --- INVENTORY (25) --- Light Ion Engine Wheel Wheel Compact Wheel Subdweller Monowheel Subdweller Monowheel Small Storage Unit Scrap Shield EM Pulse Gun EM Pulse Gun EM Pulse Gun EM Pulse Gun Medium Laser Medium Laser Subdweller Machine Gun Barrage Gun Barrage Gun Light Cannon Battle Cannon Grenade Launcher Scrap Shield Fragment (45) Scrap Shield Fragment (24) Peak State ------------ > --- POWER ------------ Ion Engine > --- PROPULSION ------- Wheel Wheel > --- UTILITY ---------- Disposable Heat Sink Huge Storage Unit > --- WEAPON ----------- Light Cannon Light Cannon > --- INVENTORY -------- Light Ion Engine Wheel Wheel Compact Wheel Subdweller Monowheel Subdweller Monowheel Small Storage Unit Scrap Shield EM Pulse Gun EM Pulse Gun EM Pulse Gun EM Pulse Gun Medium Laser Medium Laser Subdweller Machine Gun Barrage Gun Barrage Gun Light Cannon Light Cannon Battle Cannon Grenade Launcher Scrap Shield Fragment Scrap Shield Fragment [Rating: 11] Favorites ----------- Power Ion Engine Engine Ion Engine Propulsion Light Treads Treads Light Treads Wheel Wheel Utility Huge Storage Unit Device Disposable Heat Sink Storage Huge Storage Unit Protection Light Armor Plating Weapon Light Cannon Energy Gun Medium Laser Ballistic Gun Assault Rifle Ballistic Cannon Light Cannon Build | -11 -10 -10 ------- Run | Yrd Mat Sub Slots Evolved . | . . . Power . | . . . Propulsion . | . . . Utility . | . . . Weapon . | . . . Parts Attached 18 | 6 6 6 Power 1 | 1 . . Engine 1 | 1 . . Core . | . . . Reactor . | . . . Propulsion 4 | 2 . 2 Treads 2 | 2 . . Leg . | . . . Wheel 2 | . . 2 Hover . | . . . Flight . | . . . Utility 7 | 1 5 1 Device 1 | . . 1 Storage 4 | 1 3 . Processor . | . . . Hackware . | . . . Protection 2 | . 2 . Artifact . | . . . Weapon 6 | 2 1 3 Energy Gun 2 | 1 1 . Energy Cannon . | . . . Ballistic Gun 1 | 1 . . Ballistic Cannon 3 | . . 3 Launcher . | . . . Special Weapon . | . . . Impact Weapon . | . . . Slashing Weapon . | . . . Piercing Weapon . | . . . Special Melee Weapon . | . . . Unidentified Prototypes . | . . . Parts Lost 5 | . 1 4 Power . | . . . Propulsion 2 | . . 2 Utility 1 | . . 1 Weapon 2 | . 1 1 Highest Loss Streak 1 | . 1 1 To Critical Strikes . | . . . Average Slot Usage (%) 93 | . 95 91 Engine 14 | . 14 14 Treads 23 | . 28 18 Wheel 4 | . . 8 Device 1 | . . 2 Storage 15 | . 16 14 Protection 5 | . 7 3 Energy Gun 8 | . 13 2 Ballistic Gun 8 | . 14 2 Ballistic Cannon 11 | . . 23 Peak Build Rating 11 | 6 8 11 Average Rating 8 | 4 7 8 On Entrance 4 | . 6 8 Naked Turns . | . . . Heaviest Build 94 | 14 92 94 Greatest Support 40 | 40 40 40 Greatest Overweight (x) 9 | . 2 9 Average Overweight (x) 2 | . . 4 Largest Inventory Capacity 25 | 8 25 25 Average Capacity 22 | 6 20 25 Most Carried 25 | 4 17 25 Average Carried 16 | 1 13 21 Final Capacity 25 | 8 25 25 Final Carried 23 | 4 17 23 Class Distribution -------------------- 100% | Mutant Dominant Class ---------------- Mutant | -10/Materials Mutant | -10/Subcaves Resources | -11 -10 -10 ----------- Run | Yrd Mat Sub Matter Collected 611 | 260 185 166 Remotely . | . . . Salvage Created 712 | . 505 207 Parts 46 | . 38 8 Haulers Intercepted . | . . . Recyclers Shooed . | . . . Parts Field Recycled . | . . . Retrieved Matter . | . . . Parts Self-Destructed 4 | . . 4 Prevented . | . . . Kills | -11 -10 -10 ------- Run | Yrd Mat Sub Combat Hostiles Destroyed 22 | . 16 6 Guns 17 | . 14 3 Cannons 3 | . . 3 AOE 2 | . 2 . Classes Destroyed 6 | . 4 2 Worker 3 | . 3 . Watcher 3 | . 3 . Swarmer 10 | . 9 1 Grunt 7 | . 7 . Sentry 1 | . . 1 Subdweller 4 | . . 4 Best Kill Streak 8 | . 8 2 Combat Bots Only 6 | . 6 2 Max Kills in Single Turn 2 | . 2 1 Gunslinging . | . . . Exploded 2 | . 2 . Melee . | . . . Uniques/NPCs Destroyed . | . . . Combat | -11 -10 -10 -------- Run | Yrd Mat Sub Hostile Shots Fired 105 | . 80 25 Missed 27 | . 18 9 Damage Taken 1099 | . 629 470 Core 252 | . 172 80 Absorbed by Shields . | . . . Core Remaining (%) 100 | 100 . . Volleys Fired 80 | . 59 21 Largest 2 | . 2 2 Hottest 70 | . 70 70 Shots Fired 155 | . 116 39 Gun 131 | . 116 15 Cannon 24 | . . 24 Launcher . | . . . Special . | . . . Kinetic 92 | . 59 33 Thermal 50 | . 44 6 Explosive . | . . . Electromagnetic 13 | . 13 . Robot Hit Streak 11 | . 11 6 Robot Miss Streak 4 | . 4 2 Penetration Max . | . . . Secondary Targets 6 | . 5 1 Max Gunslinging Chain 1 | . 1 1 Shots Hit Robots 95 | . 73 22 Core Hits 41 | . 30 11 Critical Kills . | . . . Critical Parts Destroyed . | . . . Critical Strikes 3 | . 2 1 Burn 3 | . 2 1 Melee Attacks . | . . . Impact . | . . . Slashing . | . . . Piercing . | . . . Sneak Attacks . | . . . Combat Hostiles . | . . . Follow-up Attacks . | . . . Damage Inflicted 1430 | . 1086 344 Guns 1106 | . 975 131 Cannons 213 | . . 213 Explosions 101 | . 101 . Melee . | . . . Ramming 10 | . 10 . Kinetic 766 | . 487 279 Thermal 494 | . 429 65 Explosive . | . . . Electromagnetic 160 | . 160 . Impact . | . . . Slashing . | . . . Piercing . | . . . Highest Corruption . | . . . Average Corruption . | . . . Corruption Purged . | . . . Corruption Blocked . | . . . Overload Shots . | . . . Overflow Damage 6 | . 6 . Projectiles . | . . . Explosions 6 | . 6 . Melee . | . . . Knockbacks . | . . . Impact . | . . . Kinetic . | . . . Secondary . | . . . Self-Inflicted Damage 13 | . 13 . Shots 1 | . 1 . Rammed 2 | . 2 . Targets Rammed 3 | . 3 . Kicked . | . . . Crushed 1 | . 1 . Highest Temperature 173 | . 173 . Average Temperature 56 | . 56 . Received Heat Transfer 222 | . 213 9 Siege Activations . | . . . Robots Corrupted . | . . . Combat Hostiles . | . . . Parts Fried 2 | . 2 . Impact Corruptions . | . . . Robots Melted . | . . . Combat Hostiles . | . . . Parts Melted 5 | . 5 . Heat Transferred 1469 | . 1210 259 Parts Sabotaged . | . . . Parts Stolen . | . . . Parts Stripped . | . . . Power Chain Reactions 1 | . 1 . Alert | -11 -10 -10 ------- Run | Yrd Mat Sub Peak Influence 242 | . 242 . Initial . | . . . Average 122 | . 129 . Maximum Alert Level 1 | . 1 . Low Security (%) 79 | 100 78 . Level 1 20 | . 21 . Level 2 . | . . . Level 3 . | . . . Level 4 . | . . . Level 5 . | . . . High Security . | . . . Max Security . | . . . Squads Dispatched 1 | . 1 . Investigation . | . . . Extermination . | . . . Reinforcement 1 | . 1 . Assault . | . . . Garrison . | . . . Intercept . | . . . Searches Triggered . | . . . Construction Impeded . | . . . Haulers Reinforced . | . . . Active Scanning Responses . | . . . Cargo Convoy Interrupts . | . . . Stealth | -11 -10 -10 --------- Run | Yrd Mat Sub Distress Signals 4 | . 4 . Communications Jammed . | . . . Distress Signals . | . . . Times Spotted 27 | . 21 6 Peak Tracking Total 6 | . 6 2 Tactical Retreats 1 | . 1 . Traps | -11 -10 -10 ------- Run | Yrd Mat Sub Traps Triggered 2 | . 1 1 Indirectly . | . . . Trap Hack Attempts . | . . . Triggered . | . . . Disarmed . | . . . Reprogrammed . | . . . Reused . | . . . Traps Extracted . | . . . Installed . | . . . Triggered . | . . . Machines | -11 -10 -10 ---------- Run | Yrd Mat Sub Machines Disabled . | . . . Max in Single Turn . | . . . Machines Repaired . | . . . Machines Dismantled . | . . . Machines Sabotaged . | . . . Overloaded Fab Kills . | . . . Hacking | -11 -10 -10 --------- Run | Yrd Mat Sub Machines Accessed 1 | . 1 . Terminals 1 | . 1 . Fabricators . | . . . Repair Stations . | . . . Recycling Units . | . . . Scanalyzers . | . . . Garrison Access . | . . . Total Hacks 1 | . 1 . Successful 1 | . 1 . Failed . | . . . Catastrophic . | . . . Database Lockouts . | . . . Manual . | . . . Terminals 1 | . 1 . Fabricators . | . . . Repair Stations . | . . . Recycling Units . | . . . Scanalyzers . | . . . Garrison Access . | . . . Terminal Hacks 1 | . 1 . Robot Analysis 1 | . 1 . Fabricator Hacks . | . . . Repair Station Hacks . | . . . Recycling Unit Hacks . | . . . Scanalyzer . | . . . Garrison Access Hacks . | . . . Unauthorized Hacks . | . . . Terminals . | . . . Fabricators . | . . . Repair Stations . | . . . Recycling Units . | . . . Scanalyzers . | . . . Garrison Access . | . . . Data Cores Recovered . | . . . Used . | . . . Hacking Detections 1 | . 1 . Full Trace Events . | . . . Feedback Events . | . . . Feedback Blocked . | . . . Robot Schematics Acquired . | . . . Robots Built . | . . . Authchips . | . . . Time . | . . . Total Robot Build Rating . | . . . Part Schematics Acquired . | . . . Parts Built . | . . . Authchips . | . . . Time . | . . . Total Part Build Rating . | . . . Parts Repaired . | . . . Time . | . . . Parts Recycled . | . . . Recycled Matter . | . . . Retrieved Matter . | . . . Retrieved Components . | . . . Parts Scanalyzed . | . . . Part Schematics Acquired . | . . . Parts Damaged . | . . . Bothacking | -11 -10 -10 ------------ Run | Yrd Mat Sub Used RIF Installer . | . . . Robots Hacked . | . . . Non-combat . | . . . Combat . | . . . Robot Hacks Applied . | . . . Relay Couplers Released . | . . . Fabnet Peak Effective % . | . . . Robots Rewired . | . . . Allies Hacked . | . . . Hacks Repelled . | . . . Allies | -11 -10 -10 -------- Run | Yrd Mat Sub Total Allies . | . . . Largest Group . | . . . Highest-Rated Group . | . . . Highest-Rated Ally . | . . . Total Orders . | . . . Ally Attacks . | . . . Total Damage . | . . . Kills . | . . . Allies Corrupted . | . . . Allies Melted . | . . . Intel | -11 -10 -10 ------- Run | Yrd Mat Sub Robot Analysis Total 1 | . 1 . Derelict Logs Recovered 1 | . . 1 Drone Launches . | . . . Drone Recoveries . | . . . Exploration | -11 -10 -10 ------------- Run | Yrd Mat Sub Turns Passed 2668 | 72 1306 1290 Spaces Moved 897 | 38 341 518 Core 1 | 1 . . Treads 588 | 37 341 210 Legs . | . . . Wheels 308 | . . 308 Hover . | . . . Flight . | . . . Fastest Speed 50 | 50 160 140 Average Speed 226 | 157 221 234 Slowest Speed 480 | 160 320 480 Overloaded Moves . | . . . Propulsion Burnouts . | . . . Robots Hopped . | . . . Cave-ins Triggered . | . . . Exploration Rate (%) 41 | 4 76 45 Regions Visited 2 Branch Regions 1 Pre-discovered Areas 2 | . . 2 Known Exits Taken . | . . . Unknown Exits Taken 2 | 1 1 . Scrap Searched 4 | . . 4 Spaces Dug . | . . . Terrain Destroyed 5 | . 5 . Melee . | . . . Projectile . | . . . AOE 5 | . 5 . Terrain Rammed . | . . . Walls Destroyed . | . . . Machines Disabled . | . . . Actions | -11 -10 -10 --------- Run | Yrd Mat Sub Total 1377 | 47 773 557 Wait 352 | . 350 2 Move 895 | 37 340 518 Hop . | . . . Pick Up 26 | 4 13 9 Fast Attach 10 | 6 3 1 Attach 4 | . 1 3 Detach . | . . . Swap 4 | . 2 2 Drop 3 | . 2 1 Fire 80 | . 59 21 Melee . | . . . Ram . | . . . Kick . | . . . Crush 3 | . 3 . Escape Stasis . | . . . Rewire . | . . . Trap . | . . . Miscellaneous . | . . . Route ------- -11/Scrapyard -10/Materials (discovered 4 exits: [*Mat x2] / [*Min] / [*Sub]) -10/Subcaves (discovered 2 exits: [*Mat x2]) History --------- Turn | Location | Event 2 | -11/Scrapyard | Met Revision 17 10 | -11/Scrapyard | Discovered new exit (range 16) 73 | -11/Scrapyard | Entered Materials 300 | -10/Materials | Build established: Mutant 459 | -10/Materials | Discovered new exit (range 5) 598 | -10/Materials | Discovered new exit (range 8) 740 | -10/Materials | Core integrity fell below 50% 783 | -10/Materials | Discovered new exit (range 14) 1359 | -10/Materials | Discovered new exit (range 4) 1379 | -10/Materials | Entered Subcaves 1415 | -10/Subcaves | Discovered new exit (range 13) 1552 | -10/Subcaves | Core integrity fell below 20% 1555 | -10/Subcaves | Ambushed by Subdweller buried in earth 1695 | -10/Subcaves | Discovered new exit (range 15) 1770 | -10/Subcaves | A swath of the cavern ceiling suddenly collapsed 2219 | -10/Subcaves | Shifting Twisted Machinery released Sub. Machine Gun 2223 | -10/Subcaves | Learned location of Zion (-7) 2233 | -10/Subcaves | Shifting Twisted Machinery released Sub. Machine Gun 2248 | -10/Subcaves | Met a Zionite searching for "candidates" 2669 | -10/Subcaves | Destroyed by 36-6EF(R) with Subdweller Machine Gun Last Messages --------------- 02248_ T9-MC3(z): "Hey you! It's really dangerous down here, I feel that you could die at any moment. For your health and safety might I suggest a trip to Zion?" World map confirmed: -7/Zion. 02251_ Subatomizers dissect the Mak. Leg. 02280_ Acquired Scrap Shield Fragment. 02289_ Subatomizers dissect the Mak. Leg. 02358_ Acquired Battle Cannon. 02365_ Acquired Barrage Gun. 02408_ Lgt. Treads destroyed. 02408_ IB-94R(R) destroyed. 02417_ UZ-DUF(R) destroyed. 02427_ Acquired 43 matter. 02428_ Acquired 2 matter. 02435_ Acquired Disposable Heat Sink. 02437_ Acquired 10 matter. 02458_ Subatomizers dissect the Sub. Power Source. 02599_ Acquired 8 matter. 02656_ 36-6EF(R): "ECOKILL!" 02667_ Lgt. Cannon destroyed. Map ----- +----------------------------------------------------+ | ?????????????????????????????????????????????????? | | ?????????????????????????????????????????????????? | | ????????????????????????????????????????????###### | | ???????????????????????????????????????????## | | ???????????????????????????????????????????# | | ???????????????????????????????????????????# | | ???????????????????????????????????????????# | | ????????????????????????????????????????????# | | ?????????????????????????????????????????????# | | ????????????????????????????????????????????## | | ???????????????????????????????????????????## ## | | ???????????????????????????????????????????# ### | | ???????????????????????????????????????????# #?? | | ???????????????????????????????????????????# ##? | | ????????????????????????????????????????#### #? | | ????????????????????????????????????????# #? | | ????????????????????????????????????????## ## | | ?????????????????????????????????????????###### | | ??????????????????????????????????????####??### | | ??????????????????????????????????##### #### | | ??????????????????????????????????# ## ## | | ????????????????????#####?????????# #?# ## | | ????????????????????# ##???????# #?# | | ????????????????????# ###????## #### | | ????????????????????# ##??## # | | ???????????????????## @ #### | | ???????????????????# ## | | ??????????????????# ### ## ##### | | ?????????????????#%R #??# ###### #???# | | ???????????????""""% ???# #????## ##???# | | ??????????????? """" ???# ####?????####????# | | ???????????????? "" ??? ###??????????????? | | ????????????????##" ?? ##??????????????? | | ?????????????????##??" #???????????????? # | | ????????????????????" ????????????????# # | | ???????????????????" ????????????????# ? | | ???????????????????" ?????????????????# ## ? | | ???????????????????" ####??????????????????##?## ? | | ????????????????????#????????????????????????????? | | ?????????????????????????????????????????????????? | | ?????????????????????????????????????????????????? | | ?????????????????????????????????????????????????? | | ?????????????????????????????????????????????????? | | ?????????????????????????????????????????????????? | | ?????????????????????????????????????????????????? | | ?????????????????????????????????????????????????? | | ?????????????????????????????????????????????????? | | ?????????????????????????????????????????????????? | | ?????????????????????????????????????????????????? | | ?????????????????????????????????????????????????? | +----------------------------------------------------+ Best States ------------- Heat Dissipation 25 Coolant Potential 50 Energy Generation 10 Energy Capacity 250 Matter Stores 300 Matter Capacity 300 Sight Range 16 Terrain Scan Density 10 Armor Coverage 150 Evasion (%) 40 Recoil Reduction 2 Item Schematics ----------------- None Robot Schematics ------------------ None Fabricated ------------ Nothing Alien Tech Used ----------------- None Achievements -------------- None Challenges ------------ None Game ------ Seed GatlingAbsorptionGun Manual? 0 Play Time 00:11:16 Cumulative 83.6 hours Start 2024.09.22 @ 12:52:12 End 2024.09.22 @ 13:00:05 Sessions 1 Manual Loads 0 Difficulty Rogue Special Mode None Game No. 95 Rogue 91 Adventurer 0 Explorer 4 Win Type - Total 5 Types 3/0/0/2/0/0/0/0/0 Lore% 28 Gallery% 60 Achievement% 54 Wizard Run 0 Options --------- Layout 0 ASCII 0 Keyboard 0 Movement Numpad Keybinds 0 Fullscreen 2 Font 18/SmallcapsGlow Map View 76x50 Zoom Use 0% Tactical HUD 1 Map Filters NONE Filters NONE Steam 1 RUN: 0067a8aa-6a8c-4ef4-b886-1e18033c1b96